[Event "Titled Tuesday Blitz April 12 Early 2022"]
[White "Hess, Robert"]
[Black "Ibadov, Dashgyn"]
[WhiteFideId "2022036"]
[BlackFideId "24107514"]
[WhiteElo "2557"]
[BlackElo "2138"]
[Result "1-0"]
[Round "06"]
[TimeControl "180+1"]
[Date "2022.04.13"]
[WhiteClock "0:00:11"]
[BlackClock "0:00:06"]

1. b3 {[%clk 0:03:00]}  e5 {[%clk 0:02:58]} 2. Bb2 {[%clk 0:03:01]}  Nc6 {[%clk 0:02:58]} 3. d3 {[%clk 0:03:00]}  Nf6 {[%clk 0:02:56]} 4. Nd2 {[%clk 0:03:01]}  d5 {[%clk 0:02:56]} 5. e3 {[%clk 0:03:01]}  Be7 {[%clk 0:02:55]} 6. h3 {[%clk 0:03:01]}  Be6 {[%clk 0:02:51]} 7. a3 {[%clk 0:02:59]}  O-O {[%clk 0:02:50]} 8. Ne2 {[%clk 0:02:58]}  Nd7 {[%clk 0:02:49]} 9. g4 {[%clk 0:02:56]}  f5 {[%clk 0:02:48]} 10. gxf5 {[%clk 0:02:56]}  Rxf5 {[%clk 0:02:43]} 11. Ng3 {[%clk 0:02:48]}  Rf8 {[%clk 0:02:42]} 12. Qe2 {[%clk 0:02:46]}  a5 {[%clk 0:02:26]} 13. h4 {[%clk 0:02:28]}  a4 {[%clk 0:02:25]} 14. b4 {[%clk 0:02:28]}  b5 {[%clk 0:02:13]} 15. Bh3 {[%clk 0:02:14]}  Bxh3 {[%clk 0:02:12]} 16. Rxh3 {[%clk 0:02:15]}  Bd6 {[%clk 0:02:08]} 17. e4 {[%clk 0:02:07]}  Ne7 {[%clk 0:01:56]} 18. Nf3 {[%clk 0:01:59]}  d4 {[%clk 0:01:47]} 19. Ng5 {[%clk 0:01:53]}  Rf6 {[%clk 0:01:35]} 20. Nf5 {[%clk 0:01:41]}  Nxf5 {[%clk 0:01:10]} 21. exf5 {[%clk 0:01:40]}  Nf8 {[%clk 0:00:51]} 22. Qe4 {[%clk 0:01:01]}  h6 {[%clk 0:00:49]} 23. Qd5+ {[%clk 0:00:36]}  Kh8 {[%clk 0:00:46]} 24. Nf7+ {[%clk 0:00:33]}  Kh7 {[%clk 0:00:43]} 25. Nxd8 {[%clk 0:00:32]}  Rxd8 {[%clk 0:00:41]} 26. O-O-O {[%clk 0:00:27]}  Kh8 {[%clk 0:00:29]} 27. Qxb5 {[%clk 0:00:25]}  Rxf5 {[%clk 0:00:29]} 28. Qxa4 {[%clk 0:00:24]}  Rxf2 {[%clk 0:00:28]} 29. Qb3 {[%clk 0:00:24]}  Ng6 {[%clk 0:00:26]} 30. Rhh1 {[%clk 0:00:20]}  Nf4 {[%clk 0:00:24]} 31. Rhf1 {[%clk 0:00:18]}  Rh2 {[%clk 0:00:23]} 32. Rxf4 {[%clk 0:00:14]}  exf4 {[%clk 0:00:24]} 33. Bxd4 {[%clk 0:00:14]}  f3 {[%clk 0:00:23]} 34. Qc3 {[%clk 0:00:13]}  Rg2 {[%clk 0:00:17]} 35. Rf1 {[%clk 0:00:12]}  Rf8 {[%clk 0:00:13]} 36. a4 {[%clk 0:00:11]}  f2 {[%clk 0:00:13]} 37. a5 {[%clk 0:00:11]}  Rg1 {[%clk 0:00:11]} 38. Rxg1 {[%clk 0:00:11]}  f1=Q+ {[%clk 0:00:05]} 39. Rxf1 {[%clk 0:00:11]}  Rxf1+ {[%clk 0:00:06]} 40. Kb2 {[%clk 0:00:11]} 1-0


[Site "https://www.chess.com"]

[Event "Titled Tuesday Blitz April 12 Early 2022"]
[White "Horcajuelo Rocamora, Martin"]
[Black "Lagumina, Giulio"]
[WhiteFideId "24573027"]
[BlackFideId "800619"]
[WhiteElo "1822"]
[BlackElo "2277"]
[Result "0-1"]
[Round "06"]
[TimeControl "180+1"]
[Date "2022.04.13"]
[WhiteClock "0:01:27"]
[BlackClock "0:00:58"]

1. e4 {[%clk 0:03:00]}  e5 {[%clk 0:02:57]} 2. Nf3 {[%clk 0:02:59]}  d6 {[%clk 0:02:58]} 3. Nc3 {[%clk 0:02:58]}  Nf6 {[%clk 0:02:56]} 4. Bc4 {[%clk 0:02:58]}  Be7 {[%clk 0:02:55]} 5. d3 {[%clk 0:02:57]}  O-O {[%clk 0:02:54]} 6. O-O {[%clk 0:02:58]}  c6 {[%clk 0:02:54]} 7. Ne2 {[%clk 0:02:57]}  Bg4 {[%clk 0:02:46]} 8. Ng3 {[%clk 0:02:57]}  g6 {[%clk 0:02:38]} 9. h3 {[%clk 0:02:57]}  Bxf3 {[%clk 0:02:37]} 10. Qxf3 {[%clk 0:02:57]}  Nfd7 {[%clk 0:02:36]} 11. Bb3 {[%clk 0:02:55]}  Bg5 {[%clk 0:02:35]} 12. c3 {[%clk 0:02:50]}  Na6 {[%clk 0:02:32]} 13. Bc2 {[%clk 0:02:49]}  Bxc1 {[%clk 0:02:31]} 14. Raxc1 {[%clk 0:02:46]}  Nac5 {[%clk 0:02:31]} 15. d4 {[%clk 0:02:41]}  Ne6 {[%clk 0:02:31]} 16. Rcd1 {[%clk 0:02:39]}  Qe7 {[%clk 0:02:29]} 17. Ne2 {[%clk 0:02:34]}  Rae8 {[%clk 0:02:24]} 18. Qe3 {[%clk 0:02:34]}  Nf6 {[%clk 0:02:10]} 19. f3 {[%clk 0:02:28]}  Nh5 {[%clk 0:01:57]} 20. Bb3 {[%clk 0:02:16]}  Nef4 {[%clk 0:01:56]} 21. Nxf4 {[%clk 0:02:15]}  Nxf4 {[%clk 0:01:56]} 22. dxe5 {[%clk 0:02:15]}  Qg5 {[%clk 0:01:55]} 23. Qd2 {[%clk 0:02:10]}  dxe5 {[%clk 0:01:48]} 24. Kh2 {[%clk 0:02:09]}  Rd8 {[%clk 0:01:47]} 25. Qf2 {[%clk 0:02:05]}  b6 {[%clk 0:01:31]} 26. g3 {[%clk 0:02:03]}  Nd3 {[%clk 0:01:29]} 27. Qe2 {[%clk 0:02:02]}  Nc5 {[%clk 0:01:27]} 28. Bc2 {[%clk 0:02:02]}  Rxd1 {[%clk 0:01:24]} 29. Rxd1 {[%clk 0:02:03]}  Rd8 {[%clk 0:01:24]} 30. h4 {[%clk 0:02:01]}  Qe7 {[%clk 0:01:23]} 31. b4 {[%clk 0:02:00]}  Ne6 {[%clk 0:01:21]} 32. Bb3 {[%clk 0:01:59]}  Rxd1 {[%clk 0:01:11]} 33. Qxd1 {[%clk 0:01:48]}  h5 {[%clk 0:01:11]} 34. a4 {[%clk 0:01:46]}  Kg7 {[%clk 0:01:10]} 35. Qd2 {[%clk 0:01:41]}  c5 {[%clk 0:01:10]} 36. a5 {[%clk 0:01:38]}  cxb4 {[%clk 0:01:08]} 37. cxb4 {[%clk 0:01:39]}  Nd4 {[%clk 0:01:08]} 38. Qc3 {[%clk 0:01:33]}  bxa5 {[%clk 0:01:04]} 39. bxa5 {[%clk 0:01:30]}  Qa3 {[%clk 0:01:03]} 40. f4 {[%clk 0:01:28]}  Qxb3 {[%clk 0:01:01]} 41. Qc5 {[%clk 0:01:28]}  Qc2+ {[%clk 0:00:59]} 42. Kh3 {[%clk 0:01:27]}  Qxc5 {[%clk 0:00:58]} 0-1


[Site "https://www.chess.com"]

[Event "Titled Tuesday Blitz April 12 Early 2022"]
[White "Hua, Lefong"]
[Black "Jaskolka, Tomasz"]
[WhiteFideId "2602253"]
[BlackFideId "1170791"]
[WhiteElo "2581"]
[BlackElo "2073"]
[Result "0-1"]
[Round "06"]
[TimeControl "180+1"]
[Date "2022.04.13"]
[WhiteClock "0:01:32"]
[BlackClock "0:00:53"]

1. d4 {[%clk 0:03:00]}  d5 {[%clk 0:02:58]} 2. c4 {[%clk 0:03:01]}  e6 {[%clk 0:02:57]} 3. Nc3 {[%clk 0:03:01]}  Nf6 {[%clk 0:02:58]} 4. cxd5 {[%clk 0:03:01]}  exd5 {[%clk 0:02:58]} 5. Bg5 {[%clk 0:03:00]}  Be7 {[%clk 0:02:58]} 6. e3 {[%clk 0:03:00]}  c6 {[%clk 0:02:58]} 7. Bd3 {[%clk 0:03:00]}  O-O {[%clk 0:02:59]} 8. Qc2 {[%clk 0:03:01]}  h6 {[%clk 0:02:59]} 9. Bh4 {[%clk 0:03:01]}  Re8 {[%clk 0:02:57]} 10. Nge2 {[%clk 0:03:01]}  Nbd7 {[%clk 0:02:57]} 11. O-O {[%clk 0:03:01]}  Nf8 {[%clk 0:02:58]} 12. f3 {[%clk 0:03:01]}  Ne6 {[%clk 0:02:55]} 13. Bf2 {[%clk 0:02:59]}  b6 {[%clk 0:02:36]} 14. Rad1 {[%clk 0:02:59]}  Bb7 {[%clk 0:02:36]} 15. h3 {[%clk 0:02:56]}  Rc8 {[%clk 0:02:36]} 16. Qb1 {[%clk 0:02:55]}  Bd6 {[%clk 0:02:36]} 17. e4 {[%clk 0:02:50]}  dxe4 {[%clk 0:02:35]} 18. fxe4 {[%clk 0:02:51]}  Bb8 {[%clk 0:02:34]} 19. e5 {[%clk 0:02:50]}  Nd5 {[%clk 0:02:32]} 20. Nxd5 {[%clk 0:02:46]}  Qxd5 {[%clk 0:02:30]} 21. Be4 {[%clk 0:02:44]}  Qd7 {[%clk 0:02:28]} 22. Be3 {[%clk 0:02:40]}  Ba6 {[%clk 0:02:07]} 23. Rf2 {[%clk 0:02:35]}  Bxe2 {[%clk 0:02:06]} 24. Rxe2 {[%clk 0:02:35]}  Rcd8 {[%clk 0:01:56]} 25. Ree1 {[%clk 0:02:23]}  c5 {[%clk 0:01:46]} 26. d5 {[%clk 0:02:17]}  Nd4 {[%clk 0:01:45]} 27. Bxd4 {[%clk 0:02:00]}  cxd4 {[%clk 0:01:45]} 28. e6 {[%clk 0:01:59]}  fxe6 {[%clk 0:01:40]} 29. Rxd4 {[%clk 0:01:50]}  Qd6 {[%clk 0:01:31]} 30. Bf3 {[%clk 0:01:44]}  Qh2+ {[%clk 0:01:27]} 31. Kf1 {[%clk 0:01:45]}  Bg3 {[%clk 0:01:16]} 32. d6 {[%clk 0:01:41]}  Bxe1 {[%clk 0:01:11]} 33. Qxe1 {[%clk 0:01:39]}  Rxd6 {[%clk 0:01:09]} 34. Qd2 {[%clk 0:01:37]}  Red8 {[%clk 0:00:58]} 35. Rxd6 {[%clk 0:01:35]}  Qxd6 {[%clk 0:00:56]} 36. Qe3 {[%clk 0:01:35]}  Qd3+ {[%clk 0:00:55]} 37. Qxd3 {[%clk 0:01:32]}  Rxd3 {[%clk 0:00:56]} 38. Ke2 {[%clk 0:01:33]}  Rd6 {[%clk 0:00:54]} 39. Ke3 {[%clk 0:01:33]}  Kf7 {[%clk 0:00:54]} 40. Be2 {[%clk 0:01:33]}  Kf6 {[%clk 0:00:54]} 41. Ke4 {[%clk 0:01:32]}  Rd2 {[%clk 0:00:53]} 0-1


[Site "https://www.chess.com"]

[Event "Titled Tuesday Blitz April 12 Early 2022"]
[White "Kadam, Om Manish"]
[Black "Samaganova, Aleksandra"]
[WhiteFideId "45076294"]
[BlackFideId "13800221"]
[WhiteElo "1729"]
[BlackElo "1859"]
[Result "1-0"]
[Round "06"]
[TimeControl "180+1"]
[Date "2022.04.13"]
[WhiteClock "0:00:18"]
[BlackClock "0:00:03"]

1. e4 {[%clk 0:03:00]}  c5 {[%clk 0:02:58]} 2. Nf3 {[%clk 0:03:01]}  e6 {[%clk 0:02:58]} 3. d4 {[%clk 0:03:02]}  cxd4 {[%clk 0:02:58]} 4. Nxd4 {[%clk 0:03:02]}  a6 {[%clk 0:02:57]} 5. c4 {[%clk 0:03:03]}  Qc7 {[%clk 0:02:57]} 6. Nc3 {[%clk 0:03:03]}  Nf6 {[%clk 0:02:57]} 7. Be2 {[%clk 0:03:01]}  Bb4 {[%clk 0:02:53]} 8. f3 {[%clk 0:02:50]}  O-O {[%clk 0:02:25]} 9. O-O {[%clk 0:02:46]}  Bxc3 {[%clk 0:02:25]} 10. bxc3 {[%clk 0:02:46]}  d5 {[%clk 0:02:17]} 11. exd5 {[%clk 0:02:45]}  exd5 {[%clk 0:02:16]} 12. Bg5 {[%clk 0:02:46]}  Nbd7 {[%clk 0:02:02]} 13. Qd2 {[%clk 0:01:54]}  dxc4 {[%clk 0:01:51]} 14. Kh1 {[%clk 0:01:52]}  b5 {[%clk 0:01:39]} 15. a4 {[%clk 0:01:40]}  h6 {[%clk 0:00:51]} 16. Bf4 {[%clk 0:01:37]}  Qb7 {[%clk 0:00:43]} 17. axb5 {[%clk 0:01:34]}  axb5 {[%clk 0:00:42]} 18. Rxa8 {[%clk 0:01:34]}  Qxa8 {[%clk 0:00:43]} 19. Nxb5 {[%clk 0:01:35]}  Qc6 {[%clk 0:00:35]} 20. Nd4 {[%clk 0:01:28]}  Qc5 {[%clk 0:00:32]} 21. Qa2 {[%clk 0:01:19]}  Nb6 {[%clk 0:00:28]} 22. Rb1 {[%clk 0:01:18]}  Nbd5 {[%clk 0:00:21]} 23. Bd2 {[%clk 0:01:11]}  Bd7 {[%clk 0:00:17]} 24. Rb7 {[%clk 0:00:44]}  Rc8 {[%clk 0:00:15]} 25. Qb1 {[%clk 0:00:37]}  Be8 {[%clk 0:00:15]} 26. Rb8 {[%clk 0:00:31]}  Qc7 {[%clk 0:00:14]} 27. Rxc8 {[%clk 0:00:30]}  Qxc8 {[%clk 0:00:14]} 28. h3 {[%clk 0:00:29]}  Qc7 {[%clk 0:00:07]} 29. Qa2 {[%clk 0:00:29]}  Nb6 {[%clk 0:00:06]} 30. Qa6 {[%clk 0:00:25]}  Kh7 {[%clk 0:00:05]} 31. Nb5 {[%clk 0:00:19]}  Qc5 {[%clk 0:00:04]} 32. Nd4 {[%clk 0:00:19]}  g6 {[%clk 0:00:03]} 33. Qa7 {[%clk 0:00:19]}  Kg7 {[%clk 0:00:03]} 34. Ne6+ {[%clk 0:00:18]} 1-0


[Site "https://www.chess.com"]

[Event "Titled Tuesday Blitz April 12 Early 2022"]
[White "Kalavannan, Koby"]
[Black "Sahil, Tickoo"]
[WhiteFideId "425753"]
[BlackFideId "5019710"]
[WhiteElo "1927"]
[BlackElo "2099"]
[Result "1/2-1/2"]
[Round "06"]
[TimeControl "180+1"]
[Date "2022.04.13"]
[WhiteClock "0:00:05"]
[BlackClock "0:00:41"]

1. d4 {[%clk 0:00:23]}  d5 {[%clk 0:02:54]} 2. Nf3 {[%clk 0:00:22]}  Nf6 {[%clk 0:02:53]} 3. c4 {[%clk 0:00:23]}  e6 {[%clk 0:02:53]} 4. g3 {[%clk 0:00:23]}  Bb4+ {[%clk 0:02:49]} 5. Bd2 {[%clk 0:00:22]}  Bd6 {[%clk 0:02:49]} 6. Bg2 {[%clk 0:00:22]}  O-O {[%clk 0:02:49]} 7. Qc2 {[%clk 0:00:23]}  c6 {[%clk 0:02:48]} 8. O-O {[%clk 0:00:23]}  Ne4 {[%clk 0:02:48]} 9. Rc1 {[%clk 0:00:21]}  Nxd2 {[%clk 0:02:40]} 10. Nbxd2 {[%clk 0:00:21]}  f5 {[%clk 0:02:40]} 11. a4 {[%clk 0:00:21]}  a5 {[%clk 0:02:37]} 12. Ne5 {[%clk 0:00:16]}  Nd7 {[%clk 0:02:35]} 13. Ndf3 {[%clk 0:00:15]}  Nf6 {[%clk 0:02:35]} 14. Qb3 {[%clk 0:00:15]}  Qe7 {[%clk 0:02:26]} 15. e3 {[%clk 0:00:15]}  Ne4 {[%clk 0:02:23]} 16. Bf1 {[%clk 0:00:15]}  g5 {[%clk 0:02:06]} 17. h4 {[%clk 0:00:13]}  g4 {[%clk 0:02:04]} 18. Ne1 {[%clk 0:00:11]}  Bxe5 {[%clk 0:01:49]} 19. dxe5 {[%clk 0:00:12]}  Qg7 {[%clk 0:01:37]} 20. Nd3 {[%clk 0:00:11]}  Qe7 {[%clk 0:01:17]} 21. Qc2 {[%clk 0:00:07]}  Bd7 {[%clk 0:01:08]} 22. Bg2 {[%clk 0:00:08]}  Rfc8 {[%clk 0:01:05]} 23. b3 {[%clk 0:00:05]}  h5 {[%clk 0:01:03]} 24. Nf4 {[%clk 0:00:05]}  Be8 {[%clk 0:01:02]} 25. Bxe4 {[%clk 0:00:05]}  dxe4 {[%clk 0:00:59]} 26. Rd1 {[%clk 0:00:05]}  Rd8 {[%clk 0:00:59]} 27. Qc3 {[%clk 0:00:05]}  b6 {[%clk 0:00:56]} 28. Kf1 {[%clk 0:00:05]}  Bf7 {[%clk 0:00:49]} 29. Ke2 {[%clk 0:00:05]}  Qc5 {[%clk 0:00:43]} 30. Rac1 {[%clk 0:00:03]}  Qb4 {[%clk 0:00:43]} 31. Qxb4 {[%clk 0:00:03]}  axb4 {[%clk 0:00:44]} 32. Rxd8+ {[%clk 0:00:03]}  Rxd8 {[%clk 0:00:43]} 33. Rd1 {[%clk 0:00:04]}  Rxd1 {[%clk 0:00:41]} 34. Kxd1 {[%clk 0:00:05]}  c5 {[%clk 0:00:40]} 35. Ne2 {[%clk 0:00:05]}  Kf8 {[%clk 0:00:40]} 36. Kc2 {[%clk 0:00:06]}  Ke7 {[%clk 0:00:40]} 37. Nf4 {[%clk 0:00:04]}  Kd7 {[%clk 0:00:40]} 38. Kb2 {[%clk 0:00:04]}  Kc6 {[%clk 0:00:40]} 39. Ng2 {[%clk 0:00:05]}  Kd7 {[%clk 0:00:40]} 40. Ne1 {[%clk 0:00:05]}  Kc6 {[%clk 0:00:40]} 41. Kc1 {[%clk 0:00:06]}  Kd7 {[%clk 0:00:41]} 42. Kd2 {[%clk 0:00:06]}  Kc6 {[%clk 0:00:41]} 43. Nc2 {[%clk 0:00:07]}  Kd7 {[%clk 0:00:42]} 44. Ke2 {[%clk 0:00:06]}  Kc6 {[%clk 0:00:42]} 45. Kf1 {[%clk 0:00:06]}  Kd7 {[%clk 0:00:42]} 46. Ne1 {[%clk 0:00:07]}  Kc6 {[%clk 0:00:42]} 47. Ng2 {[%clk 0:00:07]}  Kd7 {[%clk 0:00:42]} 48. Nf4 {[%clk 0:00:07]}  Kc6 {[%clk 0:00:43]} 49. Ke2 {[%clk 0:00:08]}  Kd7 {[%clk 0:00:43]} 50. Kd2 {[%clk 0:00:08]}  Kc6 {[%clk 0:00:44]} 51. Kc2 {[%clk 0:00:08]}  Kd7 {[%clk 0:00:41]} 52. Ng2 {[%clk 0:00:06]}  Kc6 {[%clk 0:00:41]} 53. Kb2 {[%clk 0:00:07]}  Kd7 {[%clk 0:00:41]} 54. Ne1 {[%clk 0:00:07]}  Kc6 {[%clk 0:00:42]} 55. Nc2 {[%clk 0:00:08]}  Kd7 {[%clk 0:00:41]} 56. Ne1 {[%clk 0:00:05]} 1/2-1/2


[Site "https://www.chess.com"]

[Event "Titled Tuesday Blitz April 12 Early 2022"]
[White "Kamsky, Gata"]
[Black "Derjabin, Ilja"]
[WhiteFideId "2000024"]
[BlackFideId "14104768"]
[WhiteElo "2645"]
[BlackElo "2341"]
[Result "0-1"]
[Round "06"]
[TimeControl "180+1"]
[Date "2022.04.13"]
[WhiteClock "0:00:14"]
[BlackClock "0:00:57"]

1. e4 {[%clk 0:02:58]}  e6 {[%clk 0:02:51]} 2. d4 {[%clk 0:02:54]}  d5 {[%clk 0:02:52]} 3. exd5 {[%clk 0:02:54]}  exd5 {[%clk 0:02:50]} 4. Nf3 {[%clk 0:02:55]}  c5 {[%clk 0:02:49]} 5. Bb5+ {[%clk 0:02:54]}  Nc6 {[%clk 0:02:49]} 6. O-O {[%clk 0:02:54]}  Bd6 {[%clk 0:02:49]} 7. dxc5 {[%clk 0:02:48]}  Bxc5 {[%clk 0:02:49]} 8. Nbd2 {[%clk 0:02:48]}  Ne7 {[%clk 0:02:48]} 9. Nb3 {[%clk 0:02:48]}  Bb6 {[%clk 0:02:49]} 10. c3 {[%clk 0:02:33]}  Bg4 {[%clk 0:02:45]} 11. h3 {[%clk 0:02:32]}  Bh5 {[%clk 0:02:45]} 12. Be2 {[%clk 0:02:28]}  O-O {[%clk 0:02:44]} 13. Re1 {[%clk 0:02:19]}  Re8 {[%clk 0:02:44]} 14. Bf4 {[%clk 0:02:00]}  h6 {[%clk 0:02:06]} 15. Nfd4 {[%clk 0:01:52]}  Bxe2 {[%clk 0:02:03]} 16. Rxe2 {[%clk 0:01:52]}  Nxd4 {[%clk 0:02:02]} 17. Nxd4 {[%clk 0:01:51]}  Ng6 {[%clk 0:01:54]} 18. Rxe8+ {[%clk 0:01:35]}  Qxe8 {[%clk 0:01:52]} 19. Be3 {[%clk 0:01:29]}  Qe4 {[%clk 0:01:44]} 20. Qb1 {[%clk 0:00:59]}  Re8 {[%clk 0:01:34]} 21. Qxe4 {[%clk 0:00:58]}  dxe4 {[%clk 0:01:34]} 22. Nf5 {[%clk 0:00:48]}  Bxe3 {[%clk 0:01:31]} 23. Nxe3 {[%clk 0:00:47]}  Ne5 {[%clk 0:01:28]} 24. Rd1 {[%clk 0:00:46]}  Nd3 {[%clk 0:01:28]} 25. b3 {[%clk 0:00:45]}  g6 {[%clk 0:01:26]} 26. f3 {[%clk 0:00:40]}  f5 {[%clk 0:01:22]} 27. fxe4 {[%clk 0:00:40]}  fxe4 {[%clk 0:01:22]} 28. Ng4 {[%clk 0:00:33]}  Kg7 {[%clk 0:01:21]} 29. Nf2 {[%clk 0:00:33]}  Nf4 {[%clk 0:01:03]} 30. Rd7+ {[%clk 0:00:31]}  Kf8 {[%clk 0:01:03]} 31. Ng4 {[%clk 0:00:19]}  e3 {[%clk 0:01:02]} 32. Nf6 {[%clk 0:00:14]}  Re6 {[%clk 0:00:57]} 0-1


[Site "https://www.chess.com"]

[Event "Titled Tuesday Blitz April 12 Early 2022"]
[White "Kejzar, Petra"]
[Black "Belenkaya, Dina"]
[WhiteFideId "14610213"]
[BlackFideId "24142654"]
[WhiteElo "2003"]
[BlackElo "2196"]
[Result "0-1"]
[Round "06"]
[TimeControl "180+1"]
[Date "2022.04.13"]
[WhiteClock "0:00:01"]
[BlackClock "0:00:07"]

1. c4 {[%clk 0:03:00]}  e5 {[%clk 0:02:58]} 2. Nc3 {[%clk 0:02:59]}  Nc6 {[%clk 0:02:57]} 3. g3 {[%clk 0:02:58]}  Nf6 {[%clk 0:02:57]} 4. Bg2 {[%clk 0:02:58]}  Bc5 {[%clk 0:02:53]} 5. e3 {[%clk 0:02:56]}  O-O {[%clk 0:02:49]} 6. Nge2 {[%clk 0:02:54]}  a6 {[%clk 0:02:49]} 7. O-O {[%clk 0:02:53]}  d6 {[%clk 0:02:48]} 8. d4 {[%clk 0:02:53]}  exd4 {[%clk 0:02:48]} 9. exd4 {[%clk 0:02:54]}  Ba7 {[%clk 0:02:49]} 10. Bg5 {[%clk 0:02:48]}  h6 {[%clk 0:02:48]} 11. Bxf6 {[%clk 0:02:47]}  Qxf6 {[%clk 0:02:47]} 12. Nd5 {[%clk 0:02:46]}  Qd8 {[%clk 0:02:47]} 13. b4 {[%clk 0:02:40]}  Bg4 {[%clk 0:02:46]} 14. c5 {[%clk 0:02:25]}  Bxe2 {[%clk 0:02:46]} 15. Qxe2 {[%clk 0:02:25]}  Nxd4 {[%clk 0:02:46]} 16. Qc4 {[%clk 0:02:15]}  dxc5 {[%clk 0:02:42]} 17. bxc5 {[%clk 0:02:14]}  Ne6 {[%clk 0:02:38]} 18. Rfd1 {[%clk 0:01:57]}  c6 {[%clk 0:02:36]} 19. Nb6 {[%clk 0:01:52]}  Qg5 {[%clk 0:02:31]} 20. Nxa8 {[%clk 0:01:49]}  Rxa8 {[%clk 0:02:31]} 21. Rab1 {[%clk 0:01:42]}  Nxc5 {[%clk 0:02:24]} 22. Re1 {[%clk 0:01:29]}  Qf6 {[%clk 0:02:23]} 23. Rbd1 {[%clk 0:01:17]}  Ne6 {[%clk 0:02:14]} 24. Re2 {[%clk 0:01:16]}  Nd4 {[%clk 0:01:50]} 25. Re4 {[%clk 0:01:11]}  Rd8 {[%clk 0:01:48]} 26. Rde1 {[%clk 0:01:07]}  Ne6 {[%clk 0:01:41]} 27. R4e2 {[%clk 0:01:05]}  Bd4 {[%clk 0:01:20]} 28. Bh3 {[%clk 0:00:58]}  Ng5 {[%clk 0:01:20]} 29. Bg2 {[%clk 0:00:53]}  Kh7 {[%clk 0:01:11]} 30. Qc2+ {[%clk 0:00:50]}  g6 {[%clk 0:01:10]} 31. h4 {[%clk 0:00:45]}  Ne6 {[%clk 0:01:09]} 32. Bh3 {[%clk 0:00:42]}  Rd6 {[%clk 0:01:02]} 33. h5 {[%clk 0:00:42]}  Ng5 {[%clk 0:00:57]} 34. hxg6+ {[%clk 0:00:42]}  Kg7 {[%clk 0:00:43]} 35. Bg2 {[%clk 0:00:37]}  fxg6 {[%clk 0:00:42]} 36. Re7+ {[%clk 0:00:35]}  Nf7 {[%clk 0:00:40]} 37. Rxb7 {[%clk 0:00:33]}  c5 {[%clk 0:00:29]} 38. Be4 {[%clk 0:00:32]}  Qg5 {[%clk 0:00:25]} 39. Kg2 {[%clk 0:00:24]}  Rf6 {[%clk 0:00:25]} 40. f3 {[%clk 0:00:21]}  Be5 {[%clk 0:00:24]} 41. Qf2 {[%clk 0:00:19]}  h5 {[%clk 0:00:22]} 42. Rh1 {[%clk 0:00:18]}  Kh6 {[%clk 0:00:17]} 43. Bd5 {[%clk 0:00:18]}  Nd6 {[%clk 0:00:16]} 44. Bg8 {[%clk 0:00:18]}  Nxb7 {[%clk 0:00:10]} 45. Bd5 {[%clk 0:00:11]}  Nd6 {[%clk 0:00:10]} 46. Qc2 {[%clk 0:00:09]}  Qxg3+ {[%clk 0:00:09]} 47. Kf1 {[%clk 0:00:08]}  Rxf3+ {[%clk 0:00:08]} 48. Bxf3 {[%clk 0:00:07]}  Qxf3+ {[%clk 0:00:08]} 49. Kg1 {[%clk 0:00:07]}  Bd4+ {[%clk 0:00:08]} 50. Kh2 {[%clk 0:00:07]}  Be5+ {[%clk 0:00:05]} 51. Kg1 {[%clk 0:00:06]}  Qg3+ {[%clk 0:00:05]} 52. Kf1 {[%clk 0:00:06]}  Qf4+ {[%clk 0:00:05]} 53. Kg2 {[%clk 0:00:04]}  Ne4 {[%clk 0:00:05]} 54. Rf1 {[%clk 0:00:01]}  Qg3+ {[%clk 0:00:05]} 55. Kh1 {[%clk 0:00:01]}  Qh3+ {[%clk 0:00:06]} 56. Kg1 {[%clk 0:00:01]}  Qg4+ {[%clk 0:00:05]} 57. Qg2 {[%clk 0:00:01]}  Bd4+ {[%clk 0:00:06]} 58. Kh1 {[%clk 0:00:01]}  Qh4+ {[%clk 0:00:05]} 59. Qh2 {[%clk 0:00:01]}  Ng3+ {[%clk 0:00:06]} 60. Kg2 {[%clk 0:00:01]}  Qxh2+ {[%clk 0:00:06]} 61. Kxh2 {[%clk 0:00:01]}  Nxf1+ {[%clk 0:00:07]} 0-1


[Site "https://www.chess.com"]

[Event "Titled Tuesday Blitz April 12 Early 2022"]
[White "Khripachenko, Alexander"]
[Black "Korchmar, Vasiliy"]
[WhiteFideId "54184975"]
[BlackFideId "24131750"]
[WhiteElo "2193"]
[BlackElo "2370"]
[Result "1/2-1/2"]
[Round "06"]
[TimeControl "180+1"]
[Date "2022.04.12"]
[WhiteClock "0:01:55"]
[BlackClock "0:00:53"]

1. e4 {[%clk 0:03:00]}  c5 {[%clk 0:03:00]} 2. Nf3 {[%clk 0:02:58]}  d6 {[%clk 0:03:00]} 3. d4 {[%clk 0:02:58]}  cxd4 {[%clk 0:03:01]} 4. Qxd4 {[%clk 0:02:58]}  Nc6 {[%clk 0:03:01]} 5. Qe3 {[%clk 0:02:59]}  g6 {[%clk 0:02:58]} 6. Be2 {[%clk 0:02:55]}  Bh6 {[%clk 0:02:55]} 7. Qc3 {[%clk 0:02:55]}  Qa5 {[%clk 0:02:35]} 8. O-O {[%clk 0:02:35]}  Qxc3 {[%clk 0:02:31]} 9. Nxc3 {[%clk 0:02:35]}  Bg7 {[%clk 0:02:23]} 10. Nd5 {[%clk 0:02:35]}  Rb8 {[%clk 0:02:23]} 11. c3 {[%clk 0:02:31]}  Nf6 {[%clk 0:02:22]} 12. Nxf6+ {[%clk 0:02:31]}  Bxf6 {[%clk 0:02:23]} 13. Be3 {[%clk 0:02:30]}  O-O {[%clk 0:02:20]} 14. Rfd1 {[%clk 0:02:29]}  Be6 {[%clk 0:02:11]} 15. Ng5 {[%clk 0:02:25]}  Bd7 {[%clk 0:02:08]} 16. Rd2 {[%clk 0:02:16]}  b5 {[%clk 0:02:08]} 17. Rad1 {[%clk 0:02:15]}  b4 {[%clk 0:02:04]} 18. c4 {[%clk 0:02:15]}  b3 {[%clk 0:02:00]} 19. axb3 {[%clk 0:02:06]}  Rxb3 {[%clk 0:01:59]} 20. c5 {[%clk 0:02:06]}  Rxe3 {[%clk 0:01:49]} 21. fxe3 {[%clk 0:02:06]}  Bxg5 {[%clk 0:01:49]} 22. Kf2 {[%clk 0:02:07]}  f5 {[%clk 0:01:42]} 23. exf5 {[%clk 0:02:04]}  Bxf5 {[%clk 0:01:41]} 24. Bf3 {[%clk 0:02:04]}  dxc5 {[%clk 0:01:28]} 25. Rd5 {[%clk 0:01:58]}  Nb4 {[%clk 0:01:25]} 26. Rxc5 {[%clk 0:01:57]}  Nd3+ {[%clk 0:01:24]} 27. Rxd3 {[%clk 0:01:57]}  Bxd3 {[%clk 0:01:25]} 28. Rxg5 {[%clk 0:01:57]}  Rb8 {[%clk 0:01:18]} 29. b3 {[%clk 0:01:57]}  Bc2 {[%clk 0:01:02]} 30. Ra5 {[%clk 0:01:55]}  Bxb3 {[%clk 0:00:54]} 31. Rxa7 {[%clk 0:01:55]}  Kf7 {[%clk 0:00:53]} 32. Rb7 {[%clk 0:01:55]} 1/2-1/2


[Site "https://www.chess.com"]